[Event "Titled Tuesday Blitz May 9 Late 2023"]
[White "Makarian, Rudik"]
[Black "Leiva, Gianmarco"]
[WhiteFideId "44105681"]
[BlackFideId "3804399"]
[WhiteElo "2461"]
[BlackElo "2365"]
[Result "1-0"]
[Round "07"]
[TimeControl "180+2"]
[Date "2023.05.09"]
[WhiteClock "0:00:26"]
[BlackClock "0:00:00"]

1. d4 {[%clk 0:02:59]}  Nf6 {[%clk 0:02:58]} 2. c4 {[%clk 0:03:00]}  e6 {[%clk 0:02:58]} 3. Nf3 {[%clk 0:03:01]}  d5 {[%clk 0:02:58]} 4. Nc3 {[%clk 0:03:01]}  a6 {[%clk 0:02:58]} 5. c5 {[%clk 0:02:59]}  b6 {[%clk 0:02:58]} 6. cxb6 {[%clk 0:03:00]}  c5 {[%clk 0:02:58]} 7. Bf4 {[%clk 0:03:00]}  Bd6 {[%clk 0:02:47]} 8. Bxd6 {[%clk 0:03:00]}  Qxd6 {[%clk 0:02:44]} 9. dxc5 {[%clk 0:03:01]}  Qxc5 {[%clk 0:02:42]} 10. Qd4 {[%clk 0:03:02]}  Nbd7 {[%clk 0:02:30]} 11. Qxc5 {[%clk 0:02:33]}  Nxc5 {[%clk 0:02:31]} 12. Rc1 {[%clk 0:02:31]}  Ncd7 {[%clk 0:01:59]} 13. Na4 {[%clk 0:02:28]}  Rb8 {[%clk 0:01:56]} 14. Nd4 {[%clk 0:02:25]}  Bb7 {[%clk 0:01:50]} 15. e3 {[%clk 0:02:18]}  Ke7 {[%clk 0:01:35]} 16. Bd3 {[%clk 0:01:42]}  Rhc8 {[%clk 0:01:35]} 17. Kd2 {[%clk 0:01:42]}  Kd6 {[%clk 0:01:34]} 18. f4 {[%clk 0:01:38]}  Ne4+ {[%clk 0:01:09]} 19. Bxe4 {[%clk 0:01:37]}  dxe4 {[%clk 0:01:10]} 20. Rxc8 {[%clk 0:01:30]}  Rxc8 {[%clk 0:01:09]} 21. Rc1 {[%clk 0:01:29]}  Rxc1 {[%clk 0:00:59]} 22. Kxc1 {[%clk 0:01:30]}  Bc6 {[%clk 0:00:26]} 23. Nxc6 {[%clk 0:01:26]}  Kxc6 {[%clk 0:00:26]} 24. Kd2 {[%clk 0:01:26]}  e5 {[%clk 0:00:12]} 25. f5 {[%clk 0:01:23]}  Nf6 {[%clk 0:00:10]} 26. h3 {[%clk 0:01:19]}  Nd5 {[%clk 0:00:07]} 27. g4 {[%clk 0:01:18]}  a5 {[%clk 0:00:07]} 28. a3 {[%clk 0:01:15]}  f6 {[%clk 0:00:03]} 29. Nc3 {[%clk 0:01:12]}  Nxb6 {[%clk 0:00:03]} 30. Nxe4 {[%clk 0:01:13]}  Nc4+ {[%clk 0:00:04]} 31. Kc3 {[%clk 0:00:55]}  Nxe3 {[%clk 0:00:04]} 32. b4 {[%clk 0:00:56]}  Nd5+ {[%clk 0:00:04]} 33. Kc4 {[%clk 0:00:55]}  Nb6+ {[%clk 0:00:03]} 34. Kb3 {[%clk 0:00:54]}  a4+ {[%clk 0:00:02]} 35. Kc3 {[%clk 0:00:54]}  Kd5 {[%clk 0:00:02]} 36. Kd3 {[%clk 0:00:53]}  Kc6 {[%clk 0:00:02]} 37. h4 {[%clk 0:00:52]}  Kb5 {[%clk 0:00:01]} 38. Nd6+ {[%clk 0:00:50]}  Kc6 {[%clk 0:00:02]} 39. Ne8 {[%clk 0:00:51]}  g6 {[%clk 0:00:01]} 40. Nxf6 {[%clk 0:00:51]}  gxf5 {[%clk 0:00:02]} 41. gxf5 {[%clk 0:00:51]}  h6 {[%clk 0:00:02]} 42. h5 {[%clk 0:00:47]}  Kd6 {[%clk 0:00:02]} 43. Ne4+ {[%clk 0:00:43]}  Kd5 {[%clk 0:00:02]} 44. Nc3+ {[%clk 0:00:39]}  Kd6 {[%clk 0:00:02]} 45. Ke4 {[%clk 0:00:39]}  Nc4 {[%clk 0:00:02]} 46. Nxa4 {[%clk 0:00:39]}  Nxa3 {[%clk 0:00:03]} 47. Nc3 {[%clk 0:00:39]}  Nc4 {[%clk 0:00:03]} 48. b5 {[%clk 0:00:39]}  Nb6 {[%clk 0:00:02]} 49. f6 {[%clk 0:00:33]}  Ke6 {[%clk 0:00:03]} 50. f7 {[%clk 0:00:31]}  Kxf7 {[%clk 0:00:03]} 51. Kxe5 {[%clk 0:00:31]}  Nd7+ {[%clk 0:00:02]} 52. Kd6 {[%clk 0:00:30]}  Ke8 {[%clk 0:00:01]} 53. Nd5 {[%clk 0:00:30]}  Kd8 {[%clk 0:00:01]} 54. b6 {[%clk 0:00:27]}  Kc8 {[%clk 0:00:02]} 55. b7+ {[%clk 0:00:27]}  Kd8 {[%clk 0:00:02]} 56. Nb4 {[%clk 0:00:25]}  Ke8 {[%clk 0:00:01]} 57. Nc6 {[%clk 0:00:25]}  Nb8 {[%clk 0:00:00]} 58. Nxb8 {[%clk 0:00:26]} 1-0


[Site "https://www.chess.com"]

[Event "Titled Tuesday Blitz May 9 Late 2023"]
[White "Bjelobrk, Igor"]
[Black "Kamsky, Gata"]
[WhiteFideId "4300726"]
[BlackFideId "2000024"]
[WhiteElo "2319"]
[BlackElo "2660"]
[Result "1/2-1/2"]
[Round "07"]
[TimeControl "180+2"]
[Date "2023.05.09"]
[WhiteClock "0:01:14"]
[BlackClock "0:01:24"]

1. d4 {[%clk 0:02:51]}  f5 {[%clk 0:02:57]} 2. Nc3 {[%clk 0:02:48]}  Nf6 {[%clk 0:02:50]} 3. Bg5 {[%clk 0:02:44]}  d5 {[%clk 0:02:45]} 4. Bxf6 {[%clk 0:02:44]}  exf6 {[%clk 0:02:44]} 5. e3 {[%clk 0:02:43]}  Be6 {[%clk 0:02:42]} 6. Bd3 {[%clk 0:02:43]}  Nc6 {[%clk 0:02:41]} 7. a3 {[%clk 0:02:43]}  g6 {[%clk 0:02:33]} 8. Nge2 {[%clk 0:02:42]}  Bd6 {[%clk 0:02:26]} 9. b3 {[%clk 0:02:35]}  O-O {[%clk 0:02:18]} 10. Nb5 {[%clk 0:02:28]}  Na5 {[%clk 0:02:01]} 11. Nxd6 {[%clk 0:02:25]}  Qxd6 {[%clk 0:01:59]} 12. O-O {[%clk 0:02:24]}  b6 {[%clk 0:01:58]} 13. Qd2 {[%clk 0:02:02]}  Rfd8 {[%clk 0:01:57]} 14. Rfc1 {[%clk 0:02:00]}  Bf7 {[%clk 0:01:53]} 15. h3 {[%clk 0:01:57]}  Kg7 {[%clk 0:01:51]} 16. Qe1 {[%clk 0:01:56]}  Re8 {[%clk 0:01:48]} 17. Qd1 {[%clk 0:01:55]}  Rad8 {[%clk 0:01:48]} 18. c4 {[%clk 0:01:51]}  dxc4 {[%clk 0:01:47]} 19. bxc4 {[%clk 0:01:50]}  c5 {[%clk 0:01:47]} 20. d5 {[%clk 0:01:50]}  Qe5 {[%clk 0:01:41]} 21. Rab1 {[%clk 0:01:44]}  Re7 {[%clk 0:01:39]} 22. Qc2 {[%clk 0:01:35]}  h5 {[%clk 0:01:36]} 23. a4 {[%clk 0:01:26]}  h4 {[%clk 0:01:35]} 24. Kh1 {[%clk 0:01:21]}  Rh8 {[%clk 0:01:33]} 25. Ng1 {[%clk 0:01:20]}  Be8 {[%clk 0:01:28]} 26. Nf3 {[%clk 0:01:20]}  Qd6 {[%clk 0:01:28]} 27. Rd1 {[%clk 0:01:18]}  Qd7 {[%clk 0:01:26]} 28. Ra1 {[%clk 0:01:15]}  Qd6 {[%clk 0:01:26]} 29. Kg1 {[%clk 0:01:13]}  Bd7 {[%clk 0:01:25]} 30. Rd2 {[%clk 0:01:13]}  Be8 {[%clk 0:01:24]} 31. Rdd1 {[%clk 0:01:14]}  Bd7 {[%clk 0:01:23]} 32. Rd2 {[%clk 0:01:14]}  Be8 {[%clk 0:01:24]} 33. Rdd1 {[%clk 0:01:14]} 1/2-1/2


[Site "https://www.chess.com"]

[Event "Titled Tuesday Blitz May 9 Late 2023"]
[White "Wieczorek, Oskar"]
[Black "Grigoriants, Sergey"]
[WhiteFideId "1133950"]
[BlackFideId "4130804"]
[WhiteElo "2418"]
[BlackElo "2502"]
[Result "1-0"]
[Round "07"]
[TimeControl "180+2"]
[Date "2023.05.09"]
[WhiteClock "0:00:11"]
[BlackClock "0:00:00"]

1. e4 {[%clk 0:03:00]}  c5 {[%clk 0:02:56]} 2. Nf3 {[%clk 0:03:01]}  Nc6 {[%clk 0:02:52]} 3. b4 {[%clk 0:03:01]}  cxb4 {[%clk 0:02:01]} 4. d4 {[%clk 0:03:00]}  d6 {[%clk 0:01:57]} 5. d5 {[%clk 0:02:41]}  Ne5 {[%clk 0:01:52]} 6. Qd4 {[%clk 0:02:16]}  Nxf3+ {[%clk 0:01:33]} 7. gxf3 {[%clk 0:02:17]}  Nf6 {[%clk 0:01:33]} 8. Bb2 {[%clk 0:02:17]}  g6 {[%clk 0:01:30]} 9. Qxb4 {[%clk 0:02:18]}  Bg7 {[%clk 0:01:30]} 10. Bd3 {[%clk 0:02:18]}  O-O {[%clk 0:01:30]} 11. h4 {[%clk 0:02:18]}  Nh5 {[%clk 0:01:26]} 12. Bxg7 {[%clk 0:02:16]}  Kxg7 {[%clk 0:01:27]} 13. Nc3 {[%clk 0:02:01]}  e5 {[%clk 0:01:09]} 14. dxe6 {[%clk 0:01:59]}  fxe6 {[%clk 0:01:01]} 15. O-O-O {[%clk 0:01:53]}  Qb6 {[%clk 0:00:49]} 16. Qxb6 {[%clk 0:01:28]}  axb6 {[%clk 0:00:50]} 17. Be2 {[%clk 0:01:27]}  Nf4 {[%clk 0:00:47]} 18. Rxd6 {[%clk 0:01:19]}  Ra3 {[%clk 0:00:45]} 19. Kb2 {[%clk 0:01:06]}  Rxc3 {[%clk 0:00:45]} 20. Kxc3 {[%clk 0:01:07]}  Nxe2+ {[%clk 0:00:45]} 21. Kd2 {[%clk 0:01:07]}  Nf4 {[%clk 0:00:44]} 22. Rb1 {[%clk 0:01:05]}  e5 {[%clk 0:00:24]} 23. Rbxb6 {[%clk 0:01:02]}  Nh3 {[%clk 0:00:25]} 24. Rb5 {[%clk 0:00:57]}  Ng1 {[%clk 0:00:24]} 25. Rc5 {[%clk 0:00:53]}  Nxf3+ {[%clk 0:00:24]} 26. Ke3 {[%clk 0:00:53]}  Bg4 {[%clk 0:00:18]} 27. Rc7+ {[%clk 0:00:49]}  Kh6 {[%clk 0:00:19]} 28. Rxb7 {[%clk 0:00:46]}  Nxh4 {[%clk 0:00:15]} 29. a4 {[%clk 0:00:47]}  Rf3+ {[%clk 0:00:13]} 30. Kd2 {[%clk 0:00:47]}  Ra3 {[%clk 0:00:13]} 31. Rb4 {[%clk 0:00:40]}  Nf3+ {[%clk 0:00:10]} 32. Kc1 {[%clk 0:00:41]}  Nd4 {[%clk 0:00:10]} 33. Kb2 {[%clk 0:00:40]}  Rf3 {[%clk 0:00:10]} 34. a5 {[%clk 0:00:29]}  Rxf2 {[%clk 0:00:11]} 35. Rc4 {[%clk 0:00:30]}  Be2 {[%clk 0:00:10]} 36. Rc5 {[%clk 0:00:29]}  Bd3 {[%clk 0:00:08]} 37. a6 {[%clk 0:00:18]}  Bxc2 {[%clk 0:00:04]} 38. a7 {[%clk 0:00:10]}  Bxe4+ {[%clk 0:00:03]} 39. Kc3 {[%clk 0:00:11]}  Ra2 {[%clk 0:00:02]} 40. Rxe5 {[%clk 0:00:11]}  Ne2+ {[%clk 0:00:02]} 41. Kb3 {[%clk 0:00:11]}  Nc1+ {[%clk 0:00:02]} 42. Kb4 {[%clk 0:00:11]}  Nd3+ {[%clk 0:00:01]} 43. Rxd3 {[%clk 0:00:10]}  Bxd3 {[%clk 0:00:02]} 44. Re7 {[%clk 0:00:10]}  Bf5 {[%clk 0:00:00]} 45. Kb3 {[%clk 0:00:11]} 1-0


[Site "https://www.chess.com"]

[Event "Titled Tuesday Blitz May 9 Late 2023"]
[White "Rodshtein, Maxim"]
[Black "Karttunen, Mika"]
[WhiteFideId "2806851"]
[BlackFideId "502081"]
[WhiteElo "2555"]
[BlackElo "2396"]
[Result "1-0"]
[Round "07"]
[TimeControl "180+2"]
[Date "2023.05.09"]
[WhiteClock "0:01:52"]
[BlackClock "0:00:13"]

1. d4 {[%clk 0:03:00]}  Nf6 {[%clk 0:02:59]} 2. Nf3 {[%clk 0:03:01]}  d5 {[%clk 0:02:58]} 3. e3 {[%clk 0:03:00]}  e6 {[%clk 0:02:58]} 4. Nbd2 {[%clk 0:03:00]}  c5 {[%clk 0:02:57]} 5. a3 {[%clk 0:02:55]}  Nc6 {[%clk 0:02:56]} 6. dxc5 {[%clk 0:02:53]}  Bxc5 {[%clk 0:02:55]} 7. b4 {[%clk 0:02:53]}  Bd6 {[%clk 0:02:55]} 8. c4 {[%clk 0:02:53]}  a5 {[%clk 0:02:45]} 9. b5 {[%clk 0:02:51]}  Ne7 {[%clk 0:02:35]} 10. Bb2 {[%clk 0:02:50]}  Ng6 {[%clk 0:02:28]} 11. Be2 {[%clk 0:02:47]}  O-O {[%clk 0:02:28]} 12. O-O {[%clk 0:02:46]}  b6 {[%clk 0:02:23]} 13. cxd5 {[%clk 0:02:45]}  exd5 {[%clk 0:02:21]} 14. Nd4 {[%clk 0:02:40]}  Be6 {[%clk 0:02:19]} 15. Rc1 {[%clk 0:02:36]}  Re8 {[%clk 0:01:40]} 16. Nc6 {[%clk 0:02:22]}  Qc7 {[%clk 0:01:40]} 17. Bxf6 {[%clk 0:02:21]}  Bxh2+ {[%clk 0:01:37]} 18. Kh1 {[%clk 0:02:20]}  gxf6 {[%clk 0:01:37]} 19. f4 {[%clk 0:02:20]}  Bxf4 {[%clk 0:00:41]} 20. exf4 {[%clk 0:02:19]}  Nxf4 {[%clk 0:00:42]} 21. Rc3 {[%clk 0:01:59]}  Qd6 {[%clk 0:00:33]} 22. Ne4 {[%clk 0:01:55]}  dxe4 {[%clk 0:00:13]} 23. Rg3+ {[%clk 0:01:52]} 1-0


[Site "https://www.chess.com"]

[Event "Titled Tuesday Blitz May 9 Late 2023"]
[White "Jaracz, Pawel"]
[Black "Kramnik, Vladimir"]
[WhiteFideId "1102222"]
[BlackFideId "4101588"]
[WhiteElo "2438"]
[BlackElo "2703"]
[Result "0-1"]
[Round "07"]
[TimeControl "180+2"]
[Date "2023.05.09"]
[WhiteClock "0:00:02"]
[BlackClock "0:00:03"]

1. e4 {[%clk 0:03:00]}  c5 {[%clk 0:02:30]} 2. Nf3 {[%clk 0:03:00]}  e6 {[%clk 0:02:29]} 3. d4 {[%clk 0:03:00]}  cxd4 {[%clk 0:02:29]} 4. Nxd4 {[%clk 0:03:00]}  a6 {[%clk 0:02:30]} 5. Bd3 {[%clk 0:03:00]}  Nf6 {[%clk 0:02:30]} 6. O-O {[%clk 0:03:00]}  Qc7 {[%clk 0:02:30]} 7. Qe2 {[%clk 0:03:00]}  d6 {[%clk 0:02:29]} 8. c4 {[%clk 0:03:01]}  Nbd7 {[%clk 0:02:29]} 9. f4 {[%clk 0:02:59]}  g6 {[%clk 0:02:29]} 10. f5 {[%clk 0:02:51]}  Bg7 {[%clk 0:02:29]} 11. fxe6 {[%clk 0:02:51]}  Ne5 {[%clk 0:02:29]} 12. exf7+ {[%clk 0:02:51]}  Nxf7 {[%clk 0:02:29]} 13. Kh1 {[%clk 0:02:40]}  O-O {[%clk 0:02:29]} 14. Nc3 {[%clk 0:02:39]}  Bd7 {[%clk 0:02:18]} 15. Bf4 {[%clk 0:02:07]}  Rae8 {[%clk 0:02:14]} 16. Qd2 {[%clk 0:01:58]}  Qd8 {[%clk 0:02:07]} 17. Rae1 {[%clk 0:01:50]}  Nh5 {[%clk 0:01:58]} 18. Be3 {[%clk 0:01:49]}  Qh4 {[%clk 0:01:56]} 19. Bf2 {[%clk 0:01:45]}  Qd8 {[%clk 0:01:55]} 20. Nd5 {[%clk 0:01:27]}  Ne5 {[%clk 0:01:53]} 21. Be2 {[%clk 0:01:26]}  Nf6 {[%clk 0:01:37]} 22. Nxf6+ {[%clk 0:01:10]}  Rxf6 {[%clk 0:01:33]} 23. Be3 {[%clk 0:01:08]}  Ref8 {[%clk 0:01:17]} 24. Rxf6 {[%clk 0:01:07]}  Qxf6 {[%clk 0:01:17]} 25. Nf3 {[%clk 0:01:04]}  Bc6 {[%clk 0:01:13]} 26. Ng5 {[%clk 0:00:44]}  h6 {[%clk 0:01:06]} 27. Nh3 {[%clk 0:00:35]}  Bxe4 {[%clk 0:01:02]} 28. Rf1 {[%clk 0:00:34]}  Qxf1+ {[%clk 0:00:34]} 29. Bxf1 {[%clk 0:00:34]}  Rxf1+ {[%clk 0:00:34]} 30. Ng1 {[%clk 0:00:34]}  Nxc4 {[%clk 0:00:32]} 31. Qb4 {[%clk 0:00:27]}  d5 {[%clk 0:00:25]} 32. Ba7 {[%clk 0:00:25]}  b5 {[%clk 0:00:21]} 33. Qe7 {[%clk 0:00:19]}  Rf7 {[%clk 0:00:14]} 34. Qe6 {[%clk 0:00:19]}  Bf6 {[%clk 0:00:12]} 35. b3 {[%clk 0:00:15]}  Ne5 {[%clk 0:00:10]} 36. Bd4 {[%clk 0:00:14]}  Nd3 {[%clk 0:00:09]} 37. Be3 {[%clk 0:00:11]}  g5 {[%clk 0:00:06]} 38. h4 {[%clk 0:00:10]}  Kg7 {[%clk 0:00:06]} 39. hxg5 {[%clk 0:00:08]}  hxg5 {[%clk 0:00:06]} 40. Nf3 {[%clk 0:00:08]}  Re7 {[%clk 0:00:05]} 41. Qb6 {[%clk 0:00:05]}  Bxf3 {[%clk 0:00:04]} 42. gxf3 {[%clk 0:00:06]}  Ne5 {[%clk 0:00:05]} 43. Kg2 {[%clk 0:00:05]}  Ng6 {[%clk 0:00:04]} 44. Bd4 {[%clk 0:00:04]}  Nf4+ {[%clk 0:00:03]} 45. Kf1 {[%clk 0:00:04]}  Bxd4 {[%clk 0:00:03]} 46. Qxd4+ {[%clk 0:00:05]}  Kg6 {[%clk 0:00:04]} 47. Qb6+ {[%clk 0:00:05]}  Re6 {[%clk 0:00:04]} 48. Qxa6 {[%clk 0:00:02]}  Rxa6 {[%clk 0:00:03]} 0-1


[Site "https://www.chess.com"]

[Event "Titled Tuesday Blitz May 9 Late 2023"]
[White "Arabidze, Meri"]
[Black "Tari, Aryan"]
[WhiteFideId "13604040"]
[BlackFideId "1510045"]
[WhiteElo "2405"]
[BlackElo "2571"]
[Result "0-1"]
[Round "07"]
[TimeControl "180+2"]
[Date "2023.05.09"]
[WhiteClock "0:00:31"]
[BlackClock "0:00:28"]

1. d4 {[%clk 0:03:00]}  Nf6 {[%clk 0:02:56]} 2. c4 {[%clk 0:03:01]}  e6 {[%clk 0:02:57]} 3. Nf3 {[%clk 0:03:01]}  d5 {[%clk 0:02:54]} 4. Nc3 {[%clk 0:03:01]}  Ne4 {[%clk 0:02:52]} 5. Bf4 {[%clk 0:02:44]}  Bb4 {[%clk 0:02:49]} 6. Qc2 {[%clk 0:02:42]}  c5 {[%clk 0:02:47]} 7. e3 {[%clk 0:02:42]}  Qa5 {[%clk 0:02:45]} 8. Rc1 {[%clk 0:02:37]}  Nc6 {[%clk 0:02:33]} 9. Bd3 {[%clk 0:02:34]}  cxd4 {[%clk 0:02:19]} 10. Nxd4 {[%clk 0:02:25]}  Nc5 {[%clk 0:02:09]} 11. O-O {[%clk 0:02:16]}  Nxd4 {[%clk 0:02:08]} 12. exd4 {[%clk 0:02:16]}  Nxd3 {[%clk 0:02:05]} 13. Qxd3 {[%clk 0:02:17]}  dxc4 {[%clk 0:02:04]} 14. Qxc4 {[%clk 0:02:17]}  O-O {[%clk 0:01:47]} 15. a3 {[%clk 0:02:17]}  Bxc3 {[%clk 0:01:34]} 16. Rxc3 {[%clk 0:02:13]}  Bd7 {[%clk 0:01:34]} 17. Be5 {[%clk 0:02:10]}  Bb5 {[%clk 0:01:11]} 18. Qc5 {[%clk 0:01:54]}  b6 {[%clk 0:00:59]} 19. Rg3 {[%clk 0:01:53]}  f6 {[%clk 0:00:51]} 20. Qe7 {[%clk 0:01:53]}  Rf7 {[%clk 0:00:46]} 21. Qxe6 {[%clk 0:01:33]}  fxe5 {[%clk 0:00:44]} 22. Rc1 {[%clk 0:01:21]}  Re8 {[%clk 0:00:35]} 23. Qd5 {[%clk 0:00:31]}  Qd2 {[%clk 0:00:28]} 0-1


[Site "https://www.chess.com"]

[Event "Titled Tuesday Blitz May 9 Late 2023"]
[White "Pichot, Alan"]
[Black "benny_aizenberg"]
[WhiteFideId "110973"]
[WhiteElo "2573"]
[BlackElo "2650"]
[Result "1-0"]
[Round "07"]
[TimeControl "180+2"]
[Date "2023.05.09"]
[WhiteClock "0:00:25"]
[BlackClock "0:00:02"]

1. e4 {[%clk 0:02:57]}  c5 {[%clk 0:03:00]} 2. Nf3 {[%clk 0:02:56]}  d6 {[%clk 0:02:58]} 3. d4 {[%clk 0:02:56]}  cxd4 {[%clk 0:02:59]} 4. Nxd4 {[%clk 0:02:57]}  Nf6 {[%clk 0:02:59]} 5. Nc3 {[%clk 0:02:57]}  a6 {[%clk 0:03:00]} 6. Bg5 {[%clk 0:02:57]}  e6 {[%clk 0:02:57]} 7. f4 {[%clk 0:02:57]}  Be7 {[%clk 0:02:57]} 8. Qf3 {[%clk 0:02:57]}  Qc7 {[%clk 0:02:57]} 9. O-O-O {[%clk 0:02:57]}  Nbd7 {[%clk 0:02:57]} 10. g4 {[%clk 0:02:57]}  b5 {[%clk 0:02:53]} 11. Bxf6 {[%clk 0:02:57]}  Nxf6 {[%clk 0:02:53]} 12. g5 {[%clk 0:02:58]}  Nd7 {[%clk 0:02:54]} 13. f5 {[%clk 0:02:59]}  O-O {[%clk 0:02:54]} 14. h4 {[%clk 0:02:58]}  b4 {[%clk 0:02:50]} 15. Nce2 {[%clk 0:02:58]}  Nc5 {[%clk 0:02:44]} 16. f6 {[%clk 0:02:49]}  Bd8 {[%clk 0:02:44]} 17. fxg7 {[%clk 0:02:44]}  Kxg7 {[%clk 0:02:44]} 18. Nf4 {[%clk 0:02:45]}  Bb7 {[%clk 0:02:19]} 19. Nh5+ {[%clk 0:02:41]}  Kh8 {[%clk 0:02:19]} 20. Bd3 {[%clk 0:02:42]}  d5 {[%clk 0:01:32]} 21. e5 {[%clk 0:02:30]}  Qxe5 {[%clk 0:01:30]} 22. Qg4 {[%clk 0:01:59]}  Rc8 {[%clk 0:01:12]} 23. Kb1 {[%clk 0:01:53]}  f5 {[%clk 0:00:59]} 24. gxf6 {[%clk 0:01:26]}  Bxf6 {[%clk 0:00:57]} 25. Nxf6 {[%clk 0:01:26]}  Qxf6 {[%clk 0:00:57]} 26. Rhf1 {[%clk 0:01:15]}  Qg7 {[%clk 0:00:57]} 27. Qxg7+ {[%clk 0:00:55]}  Kxg7 {[%clk 0:00:57]} 28. Rg1+ {[%clk 0:00:56]}  Kh8 {[%clk 0:00:48]} 29. Rde1 {[%clk 0:00:57]}  Rce8 {[%clk 0:00:46]} 30. Rg5 {[%clk 0:00:57]}  Rf4 {[%clk 0:00:38]} 31. Nf5 {[%clk 0:00:52]}  Rf8 {[%clk 0:00:24]} 32. Nd6 {[%clk 0:00:46]}  Bc6 {[%clk 0:00:24]} 33. Reg1 {[%clk 0:00:42]}  Nxd3 {[%clk 0:00:12]} 34. cxd3 {[%clk 0:00:41]}  Rf1+ {[%clk 0:00:12]} 35. Kc2 {[%clk 0:00:42]}  Rxg1 {[%clk 0:00:11]} 36. Rxg1 {[%clk 0:00:43]}  a5 {[%clk 0:00:11]} 37. d4 {[%clk 0:00:38]}  Bd7 {[%clk 0:00:08]} 38. Kd3 {[%clk 0:00:35]}  h6 {[%clk 0:00:08]} 39. Rc1 {[%clk 0:00:27]}  Kg7 {[%clk 0:00:06]} 40. Rc7 {[%clk 0:00:27]}  Rd8 {[%clk 0:00:03]} 41. Nb7 {[%clk 0:00:27]}  Rf8 {[%clk 0:00:02]} 42. Rxd7+ {[%clk 0:00:27]}  Kg6 {[%clk 0:00:03]} 43. Nc5 {[%clk 0:00:25]}  Rf3+ {[%clk 0:00:02]} 44. Ke2 {[%clk 0:00:25]}  Rf4 {[%clk 0:00:02]} 45. Ke3 {[%clk 0:00:25]}  Rxh4 {[%clk 0:00:02]} 46. Rd6 {[%clk 0:00:25]}  Kf5 {[%clk 0:00:03]} 47. Rxe6 {[%clk 0:00:24]}  Rh3+ {[%clk 0:00:03]} 48. Ke2 {[%clk 0:00:23]}  Rh2+ {[%clk 0:00:04]} 49. Kf3 {[%clk 0:00:24]}  Rxb2 {[%clk 0:00:03]} 50. Re5+ {[%clk 0:00:24]}  Kf6 {[%clk 0:00:03]} 51. Rxd5 {[%clk 0:00:24]}  Rxa2 {[%clk 0:00:04]} 52. Ne4+ {[%clk 0:00:25]}  Ke6 {[%clk 0:00:04]} 53. Rd6+ {[%clk 0:00:25]}  Kf5 {[%clk 0:00:02]} 54. Rf6# {[%clk 0:00:25]} 1-0


[Site "https://www.chess.com"]

[Event "Titled Tuesday Blitz May 9 Late 2023"]
[White "Lewicki, Miroslaw"]
[Black "Grigorov, Grigor"]
[WhiteFideId "1113380"]
[BlackFideId "2907313"]
[WhiteElo "2212"]
[BlackElo "2510"]
[Result "0-1"]
[Round "07"]
[TimeControl "180+2"]
[Date "2023.05.09"]
[WhiteClock "0:00:00"]
[BlackClock "0:00:06"]

1. b3 {[%clk 0:02:54]}  d5 {[%clk 0:02:56]} 2. Bb2 {[%clk 0:02:55]}  Nf6 {[%clk 0:02:56]} 3. f4 {[%clk 0:02:53]}  Bf5 {[%clk 0:02:49]} 4. Nf3 {[%clk 0:02:53]}  e6 {[%clk 0:02:47]} 5. e3 {[%clk 0:02:52]}  h6 {[%clk 0:02:45]} 6. g3 {[%clk 0:02:48]}  Be7 {[%clk 0:02:43]} 7. Bg2 {[%clk 0:02:48]}  c5 {[%clk 0:02:40]} 8. O-O {[%clk 0:02:48]}  Nc6 {[%clk 0:02:39]} 9. Nc3 {[%clk 0:02:41]}  d4 {[%clk 0:02:31]} 10. exd4 {[%clk 0:02:39]}  cxd4 {[%clk 0:02:29]} 11. Nb5 {[%clk 0:02:37]}  d3 {[%clk 0:02:20]} 12. c4 {[%clk 0:02:32]}  a6 {[%clk 0:02:07]} 13. Nc3 {[%clk 0:02:29]}  O-O {[%clk 0:01:55]} 14. Qe1 {[%clk 0:02:27]}  Bc5+ {[%clk 0:01:48]} 15. Kh1 {[%clk 0:02:27]}  Nb4 {[%clk 0:01:48]} 16. Rc1 {[%clk 0:02:11]}  Nc2 {[%clk 0:01:45]} 17. Qd1 {[%clk 0:01:56]}  Ng4 {[%clk 0:01:39]} 18. Na4 {[%clk 0:01:51]}  Nf2+ {[%clk 0:01:35]} 19. Rxf2 {[%clk 0:01:51]}  Bxf2 {[%clk 0:01:35]} 20. Qf1 {[%clk 0:01:19]}  Ba7 {[%clk 0:01:30]} 21. Ne5 {[%clk 0:01:12]}  f6 {[%clk 0:01:02]} 22. Nf3 {[%clk 0:01:04]}  b5 {[%clk 0:00:59]} 23. cxb5 {[%clk 0:00:59]}  axb5 {[%clk 0:01:00]} 24. Nc3 {[%clk 0:01:00]}  b4 {[%clk 0:00:49]} 25. Na4 {[%clk 0:00:57]}  Rc8 {[%clk 0:00:47]} 26. Nh4 {[%clk 0:00:54]}  Bh7 {[%clk 0:00:43]} 27. f5 {[%clk 0:00:36]}  exf5 {[%clk 0:00:31]} 28. Qf4 {[%clk 0:00:34]}  g5 {[%clk 0:00:24]} 29. Qf3 {[%clk 0:00:28]}  gxh4 {[%clk 0:00:23]} 30. gxh4 {[%clk 0:00:29]}  Qe7 {[%clk 0:00:16]} 31. Qh5 {[%clk 0:00:26]}  Qg7 {[%clk 0:00:15]} 32. Rf1 {[%clk 0:00:16]}  Qg6 {[%clk 0:00:13]} 33. Bd5+ {[%clk 0:00:14]}  Kh8 {[%clk 0:00:13]} 34. Qf3 {[%clk 0:00:14]}  f4 {[%clk 0:00:10]} 35. Qxf4 {[%clk 0:00:13]}  Rcd8 {[%clk 0:00:07]} 36. h5 {[%clk 0:00:05]}  Qg7 {[%clk 0:00:05]} 37. Bc4 {[%clk 0:00:03]}  Bd4 {[%clk 0:00:05]} 38. Bxd4 {[%clk 0:00:01]}  Rxd4 {[%clk 0:00:06]} 39. Qf2 {[%clk 0:00:00]}  Be4+ {[%clk 0:00:06]} 0-1


[Site "https://www.chess.com"]